fUST/lending_fUST_20250823
["ID","MTS","AMOUNT","RATE_DAILY","PERIOD"]
[380988767,1755929438882,-1152.68162522,0.00026646,2]
[380988827,1755929443741,-4955.71642452,0.00026646,2]
[380988828,1755929443750,-250.0,0.00026646,2]
[380988829,1755929443760,-250.0,0.00026646,2]
[380988830,1755929443772,-250.0,0.00026646,2]
[380988831,1755929443782,-250.0,0.00026646,2]
[380988832,1755929443791,-168.0,0.00026712,2]
[380988833,1755929443800,-1600.0,0.00026712,2]
[380988834,1755929443810,-168.0,0.00026783,2]
[380988835,1755929443820,-341.18020223,0.00026806,6]
[380988836,1755929443829,-3.40477181,0.00026811,2]
[380988837,1755929443843,-320.58394635,0.00026811,2]
[380988838,1755929443870,-176.01128184,0.00026811,2]
[380988840,1755929443882,-168.0,0.00026835,2]
[380988841,1755929443891,-369.33,0.000269,2]
[380988842,1755929443900,-500.0,0.00027002,2]
[380988844,1755929443910,-500.0,0.00027071,2]
[380988846,1755929443920,-223.0,0.00027099,2]
[380988848,1755929443930,-168.0,0.00027192,2]
[380988850,1755929443939,-223.0,0.00027208,2]
[380988852,1755929443949,-222.64979996,0.00027242,2]
[380988857,1755929443990,-273.34181793,0.00027242,2]
[380988859,1755929444002,-108.79933022,0.00027242,2]
[380988861,1755929444011,-300.0,0.00027245,20]
[380988863,1755929444021,-223.0,0.00027353,2]
[380988865,1755929444030,-168.0,0.00027388,2]
[380988867,1755929444039,-168.0,0.000274,2]
[380988869,1755929444048,-223.0,0.00027467,2]
[380988871,1755929444058,-500.0,0.00027555,2]
[380988873,1755929444067,-500.0,0.00027712,2]
[380988875,1755929444077,-223.0,0.00027723,7]
[380988877,1755929444086,-1600.0,0.00027808,7]
[380988879,1755929444095,-500.0,0.00027846,2]
[380988881,1755929444106,-223.0,0.00027979,7]
[380988883,1755929444115,-686.5655016,0.0002798,2]
[380988885,1755929444126,-226.96375931,0.0002798,2]
[380988887,1755929444136,-200.0,0.0002799,3]
[380988889,1755929444146,-500.0,0.00027992,2]
[380988891,1755929444155,-151.0,0.00028015,2]
[380988893,1755929444165,-215.94678008,0.00028057,2]
[380988895,1755929444174,-3189.98042368,0.00028072,2]
[380989170,1755929446785,-38215.0339489,0.00028072,2]
[380989172,1755929446795,-151.644077,0.00028072,7]
[380989174,1755929446804,-940.338063,0.00028072,7]
[380989176,1755929446814,-151.0,0.00028072,7]
[380989178,1755929446822,-762.45922195,0.00028072,7]
[380989180,1755929446833,-177.87884105,0.00028072,7]
[380989182,1755929446841,-940.338063,0.00028072,7]
[380989184,1755929446850,-940.338063,0.00028072,7]
[380989186,1755929446861,-151.0,0.00028072,7]
[380989188,1755929446871,-151.0,0.00028072,7]
[380989189,1755929446883,-151.0,0.00028072,7]
[380989191,1755929446893,-151.0,0.00028072,7]
[380989193,1755929446902,-161.430575,0.00028072,7]
[380989196,1755929446912,-222.519807,0.00028072,7]
[380989198,1755929446922,-222.519807,0.00028072,7]
[380989200,1755929446932,-222.519807,0.00028072,7]
[380989202,1755929446942,-222.519807,0.00028072,7]
[380989203,1755929446952,-151.0,0.00028072,7]
[380989205,1755929446963,-223.0,0.0002808,7]
[380989208,1755929446973,-914.49490304,0.00028127,2]
[380989209,1755929446982,-993.23,0.00028152,10]
[380989211,1755929446992,-778.89039343,0.00028152,2]
[380989213,1755929447001,-151.0,0.00028155,7]
[380989215,1755929447010,-152.128338,0.00028155,7]
[380989217,1755929447023,-152.212318,0.00028155,7]
[380989220,1755929447032,-151.0,0.00028155,7]
[380989221,1755929447040,-151.0,0.00028155,7]
[380989223,1755929447049,-151.0,0.00028155,7]
[380989225,1755929447058,-151.119515,0.00028155,7]
[380989227,1755929447068,-151.0,0.00028155,7]
[380989229,1755929447076,-232.37252479,0.00028155,7]
[380989231,1755929447085,-137.2053127,0.00028155,7]
[380989300,1755929468211,310.90652271,0.000199,2]
[380989312,1755929592675,2195.0,0.00021,2]
[380989313,1755929640109,163.753196,0.00013699,2]
[380989314,1755929646420,300.54497729,0.000199,2]
[380989317,1755929802835,2131.39401777,0.00021,2]
[380989318,1755929814478,290.52681139,0.000199,2]
[380989324,1755929988300,271.15835718,0.000199,2]
[380989349,1755930165556,249.81197244,0.000199,2]
[380989358,1755930279514,302.45563732,0.00019801,2]
[380989359,1755930345235,241.48490675,0.000199,2]
[380989360,1755930366536,3163.0,0.00021,2]
[380989366,1755930513572,233.43540981,0.000199,2]
[380989369,1755930522502,3500.0,0.0002,10]
[380989371,1755930554724,452.20188962,0.00027,120]
[380989372,1755930591976,2577.78,0.00021,2]
[380989482,1755930632266,-163.753196,0.00022505,2]
[380989484,1755930632278,-4865.35159177,0.00025,2]
[380989485,1755930632289,-208.8471139,0.00025766,2]
[380989486,1755930632299,-153.0,0.0002599,2]
[380989487,1755930632311,-153.0,0.0002599,2]
[380989488,1755930632320,-153.0,0.0002599,2]
[380989489,1755930632329,-153.0,0.0002599,2]
[380989490,1755930632341,-153.0,0.0002599,2]
[380989491,1755930632353,-153.0,0.0002599,2]
[380989492,1755930632362,-666.0,0.0002601,2]
[380989493,1755930632371,-500.0,0.00026103,2]
[380989494,1755930632381,-367.13453615,0.00026394,2]
[380989495,1755930632393,-132.86546385,0.00026394,2]
[380989496,1755930632403,-215.94678008,0.00026691,2]
[380989497,1755930632412,-1400.0,0.00026712,2]
[380989498,1755930632422,-973.0,0.00026724,2]
[380989499,1755930632432,-637.0,0.00026724,2]
[380989500,1755930632441,-906.46649041,0.00026724,2]
[380989534,1755930637853,-1247.53350959,0.00026724,2]
[380989536,1755930637863,-408.0,0.00026724,2]
[380989538,1755930637872,-199.0,0.00026749,20]
[380989540,1755930637882,-500.0,0.00026804,2]
[380989542,1755930637892,-233.43540963,0.00026806,6]
[380989544,1755930637902,-500.0,0.00026878,2]
[380989546,1755930637911,-500.0,0.00027034,2]
[380989548,1755930637922,-168.0,0.00027618,2]
[380989550,1755930637932,-500.0,0.00027635,2]
[380989552,1755930637941,-1400.0,0.00027808,7]
[380989556,1755930637951,-2367.32751097,0.00027862,2]
[380989559,1755930637960,-500.0,0.00027866,2]
[380989561,1755930637969,-151.0,0.00027945,2]
[380989565,1755930637978,-200.0,0.0002796,2]
[380989568,1755930637988,-7940.79856981,0.00027962,2]
[380989571,1755930637999,-1524.92231469,0.00027962,2]
[380989575,1755930638021,-568.35,0.00027962,2]
[380989577,1755930638032,-402.9211081,0.00027962,2]
[380989579,1755930638041,-739.94587376,0.00027962,2]
[380989581,1755930638050,-1026.34,0.00027962,10]
[380989583,1755930638059,-500.0,0.00027971,2]
[380989585,1755930638069,-52.17043503,0.00027971,2]
[380989734,1755930639851,-855.28,0.00027962,10]
[380989736,1755930639861,-194.87450006,0.00027971,2]
[380989738,1755930639871,-276.51060943,0.00027971,2]
[380989740,1755930639882,-803.58003531,0.00027971,2]
[380989742,1755930639893,-1143.14728134,0.00027971,2]
[380989745,1755930639907,-808.30207392,0.00027971,2]
[380989747,1755930639917,-178.73092293,0.00027971,2]
[380989749,1755930639926,-367.56664473,0.00027972,2]
[380990042,1755930642930,-199.0,0.00026649,20]
[380990044,1755930642940,-2583.77,0.000269,2]
[380990046,1755930642949,-2398.12695527,0.00027972,2]
[380990058,1755930643060,-362.42837081,0.00027972,2]
[380990331,1755930646141,-3332.509932,0.00027972,2]
[380993470,1755930680126,213.49673609,0.000199,2]
[380994154,1755930687573,163.60898,0.00013699,2]
[381000266,1755930845436,206.38017823,0.000199,2]
[381000402,1755931618091,-399.00167768,0.0002249,2]
[381000403,1755931618112,-163.60898,0.00023182,2]
[381000404,1755931618134,-399.00167768,0.00024216,2]
[381000405,1755931618154,-7499.17858479,0.00024766,2]
[381000457,1755931832191,-260.5583387,0.00021873,2]
[381000459,1755931832202,-554.07766575,0.00021873,2]
[381000461,1755931832214,-4185.36399555,0.00021873,2]
[381000463,1755931832223,-345.801454,0.0002249,2]
[381000465,1755931832233,-345.801454,0.00024216,2]
[381000466,1755931832242,-300.0,0.00024735,2]
[381000468,1755931832251,-300.0,0.00024735,2]
[381000469,1755931832261,-3414.81705043,0.00024736,2]
[381000471,1755931832272,-836.30325091,0.00024736,2]
[381000473,1755931832284,-6818.79864926,0.00024736,2]
[381000475,1755931832293,-2001.94644682,0.00024766,2]
[381000477,1755931832305,-498.87496839,0.00024766,2]
[381000479,1755931832314,-160.0,0.00025089,2]
[381000480,1755931832324,-10097.39552004,0.00025457,2]
[381000590,1755931838257,-2050.27152,0.00025457,2]
[381000847,1755931843299,-1563.1611139,0.00025457,2]
[381000849,1755931843311,-453.0,0.00025457,2]
[381001146,1755931846222,-4551.23386648,0.00025457,2]
[381001150,1755931846246,-3616.81174738,0.00025457,2]
[381001152,1755931846255,-234.0976817,0.00025499,2]
[381001154,1755931846265,-3243.09660689,0.00025523,2]
[381001156,1755931846273,-203.7932291,0.00025523,2]
[381001158,1755931846284,-150.07,0.0002564,7]
[381001159,1755931846294,-215.94678008,0.00025709,2]
[381001161,1755931846303,-150.07,0.0002574,7]
[381001163,1755931846313,-150.07,0.0002584,7]
[381001165,1755931846322,-150.07,0.0002594,7]
[381001167,1755931846332,-150.07,0.0002604,7]
[381001169,1755931846341,-150.07,0.0002614,7]
[381001171,1755931846350,-500.0,0.00026168,2]
[381001173,1755931846360,-153.0,0.00026177,2]
[381001175,1755931846369,-153.0,0.00026177,2]
[381001177,1755931846378,-153.0,0.00026177,2]
[381001179,1755931846387,-153.0,0.00026177,2]
[381001181,1755931846397,-273.35986992,0.00026183,2]
[381001183,1755931846405,-150.07,0.0002624,7]
[381001185,1755931846415,-500.0,0.00026246,2]
[381001187,1755931846425,-345.52468367,0.0002628,2]
[381001189,1755931846434,-242.12890628,0.00026286,2]
[381001191,1755931846443,-502.18374054,0.00026286,2]
[381001193,1755931846453,-150.07,0.0002634,7]
[381001195,1755931846462,-150.07,0.0002644,7]
[381001197,1755931846472,-160.0,0.00026452,3]
[381001199,1755931846481,-150.07,0.0002654,7]
[381001201,1755931846490,-150.07,0.0002664,7]
[381001203,1755931846500,-151.0,0.00026646,2]
[381001205,1755931846509,-581.3595559,0.00026651,2]
[381001207,1755931846518,-581.3595559,0.00026651,2]
[381001209,1755931846528,-581.3595559,0.00026651,2]
[381001211,1755931846537,-155.51329032,0.00026685,30]
[381001213,1755931846546,-1000.0,0.00026712,2]
[381001215,1755931846555,-150.13,0.0002674,7]
[381001217,1755931846564,-500.0,0.00026788,2]
[381001219,1755931846573,-420.0,0.00026803,2]
[381001221,1755931846582,-500.0,0.00026826,2]
[381001223,1755931846591,-1963.21,0.000269,2]
[381001225,1755931846600,-3722.24,0.000269,2]
[381001226,1755931846610,-3749.43,0.000269,2]
[381001228,1755931846624,-151.0,0.000269,7]
[381001231,1755931846634,-151.0,0.000269,7]
[381001232,1755931846643,-151.0,0.000269,7]
[381001234,1755931846652,-151.0,0.000269,7]
[381001236,1755931846662,-151.0,0.000269,7]
[381001238,1755931846671,-152.262419,0.000269,7]
[381001240,1755931846680,-151.0,0.000269,7]
[381001242,1755931846690,-151.0,0.000269,7]
[381001244,1755931846699,-151.0,0.000269,7]
[381001246,1755931846709,-151.0,0.000269,7]
[381001248,1755931846719,-151.0,0.000269,7]
[381001250,1755931846729,-151.0,0.000269,7]
[381001251,1755931846738,-151.0,0.000269,7]
[381001253,1755931846747,-276.984422,0.000269,7]
[381001255,1755931846756,-500.0,0.000269,2]
[381001257,1755931846765,-155.51329032,0.00027041,30]
[381001259,1755931846774,-973.0,0.00027078,2]
[381001261,1755931846784,-2154.0,0.00027078,2]
[381001263,1755931846793,-637.0,0.00027078,2]
[381001265,1755931846802,-500.0,0.00027216,2]
[381001267,1755931846811,-500.0,0.00027382,2]
[381001269,1755931846821,-155.51329032,0.00027397,30]
[381001271,1755931846831,-160.0,0.00027415,4]
[381001273,1755931846840,-153.51644454,0.00027472,30]
[381001275,1755931846850,-302.9813425,0.00027472,30]
[381001277,1755931846859,-3547.0,0.00027717,2]
[381001279,1755931846868,-155.51329032,0.00027753,30]
[381001281,1755931846877,-1228.85243334,0.00027772,2]
[381001283,1755931846887,-1000.0,0.00027808,7]
[381001285,1755931846896,-151.0,0.00027808,7]
[381001287,1755931846905,-152.14769542,0.00027808,7]
[381001289,1755931846916,-151.0,0.00027808,7]
[381001291,1755931846925,-198.91617106,0.00027808,7]
[381001293,1755931846934,-151.0,0.00027808,7]
[381001295,1755931846943,-151.0,0.00027851,7]
[381001297,1755931846952,-151.0,0.00027851,7]
[381001299,1755931846961,-151.0,0.00027851,7]
[381001301,1755931846971,-151.0,0.00027851,7]
[381001303,1755931846980,-198.356656,0.00027851,7]
[381001304,1755931846989,-151.0,0.00027851,7]
[381001306,1755931846999,-151.0,0.00027851,7]
[381001308,1755931847008,-151.0,0.00027851,7]
[381001310,1755931847017,-153.512182,0.00027851,7]
[381001312,1755931847027,-151.0,0.00027851,7]
[381001314,1755931847035,-151.0,0.00027851,7]
[381001316,1755931847045,-151.0,0.00027861,7]
[381001318,1755931847055,-151.0,0.00027861,7]
[381001320,1755931847064,-188.147018,0.00027861,7]
[381001322,1755931847073,-153.603412,0.00027861,7]
[381001324,1755931847083,-151.0,0.00027861,7]
[381001326,1755931847092,-151.0,0.00027861,7]
[381001342,1755931847234,-151.67554,0.00027861,7]
[381001344,1755931847244,-151.0,0.00027861,7]
[381001346,1755931847253,-151.723251,0.00027861,7]
[381001348,1755931847262,-151.0,0.00027861,7]
[381001350,1755931847272,-159.286329,0.00027861,7]
[381001352,1755931847281,-151.0,0.00027861,7]
[381001354,1755931847290,-151.0,0.00027861,7]
[381001355,1755931847299,-151.0,0.00027861,7]
[381001357,1755931847309,-151.0,0.00027861,7]
[381001359,1755931847318,-151.0,0.00027861,7]
[381001361,1755931847327,-254.650996,0.00027861,7]
[381001363,1755931847336,-259.612877,0.00027861,7]
[381001365,1755931847346,-752.270451,0.00027861,7]
[381001367,1755931847355,-151.524281,0.00027861,7]
[381001369,1755931847365,-752.270451,0.00027861,7]
[381001371,1755931847374,-161.252734,0.00027861,7]
[381001373,1755931847383,-752.270451,0.00027861,7]
[381001374,1755931847392,-752.270451,0.00027861,7]
[381001376,1755931847402,-752.270451,0.00027861,7]
[381001378,1755931847411,-752.270451,0.00027861,7]
[381001380,1755931847421,-752.270451,0.00027861,7]
[381001382,1755931847430,-752.270451,0.00027861,7]
[381001384,1755931847439,-232.37252479,0.00027861,7]
[381001386,1755931847449,-844.50316758,0.00027861,7]
[381001388,1755931847460,-151.0,0.00027861,7]
[381001390,1755931847470,-151.0,0.00027861,7]
[381001392,1755931847479,-151.0,0.00027861,7]
[381001394,1755931847488,-151.0,0.00027861,7]
[381001396,1755931847497,-281.991488,0.00027861,7]
[381001397,1755931847506,-151.0,0.00027861,7]
[381001399,1755931847515,-151.0,0.00027861,7]
[381001401,1755931847525,-151.0,0.00027861,7]
[381001403,1755931847534,-151.0,0.00027861,7]
[381001405,1755931847543,-246.328665,0.00027861,7]
[381001407,1755931847553,-217.0334113,0.00027861,7]
[381001409,1755931847563,-151.0,0.00027861,7]
[381001411,1755931847572,-163.025655,0.00027861,7]
[381001413,1755931847581,-193.115846,0.00027861,7]
[381001415,1755931847590,-193.115846,0.00027861,7]
[381001416,1755931847599,-193.115846,0.00027861,7]
[381001418,1755931847609,-193.115846,0.00027861,7]
[381001420,1755931847622,-193.115846,0.00027861,7]
[381001422,1755931847632,-193.115846,0.00027861,7]
[381001424,1755931847641,-193.115846,0.00027861,7]
[381001425,1755931847651,-193.115846,0.00027861,7]
[381001426,1755931847661,-417.15472785,0.00027861,7]
[381001427,1755931847671,-151.0,0.00027861,7]
[381001428,1755931847680,-151.0,0.00027861,7]
[381001429,1755931847690,-151.0,0.00027861,7]
[381001430,1755931847699,-151.0,0.00027861,7]
[381001431,1755931847708,-151.0,0.00027861,7]
[381001432,1755931847718,-151.0,0.00027861,7]
[381001433,1755931847726,-151.0,0.00027861,7]
[381001434,1755931847735,-151.0,0.00027861,7]
[381001435,1755931847745,-151.0,0.00027861,7]
[381001436,1755931847756,-151.0,0.00027861,7]
[381001437,1755931847766,-261.934574,0.00027861,7]
[381001438,1755931847775,-151.0,0.00027861,7]
[381001439,1755931847784,-151.0,0.00027861,7]
[381001440,1755931847794,-151.0,0.00027861,7]
[381001441,1755931847803,-238.027524,0.00027861,7]
[381001442,1755931847812,-151.0,0.00027861,7]
[381001443,1755931847821,-151.0,0.00027861,7]
[381001444,1755931847830,-151.0,0.00027861,7]
[381001445,1755931847839,-151.0,0.00027861,7]
[381001446,1755931847848,-19830.284786,0.00027862,2]
[381001447,1755931847858,-1405.89716014,0.00027862,2]
[381001448,1755931847867,-154.739108,0.00027862,7]
[381001449,1755931847877,-512.44,0.00027862,3]
[381001450,1755931847886,-2905.23,0.00027871,2]
[381001451,1755931847895,-94390.16439225,0.00027872,2]
[381001452,1755931847905,-151.910683,0.00027872,7]
[381001453,1755931847914,-151.0,0.00027872,7]
[381001454,1755931847924,-151.0,0.00027872,7]
[381001455,1755931847933,-151.0,0.00027872,7]
[381001456,1755931847942,-156.235824,0.00027872,7]
[381001457,1755931847951,-151.0,0.00027872,7]
[381001459,1755931847961,-157.491416,0.00027872,7]
[381001460,1755931847970,-151.0,0.00027872,7]
[381001462,1755931847979,-752.270451,0.00027872,7]
[381001464,1755931847990,-752.270451,0.00027872,7]
[381001466,1755931847999,-752.270451,0.00027872,7]
[381001468,1755931848009,-752.270451,0.00027872,7]
[381001470,1755931848018,-215.848951,0.00027872,7]
[381001472,1755931848027,-151.0,0.00027872,7]
[381001474,1755931848037,-151.0,0.00027872,7]
[381001476,1755931848047,-151.0,0.00027872,7]
[381001478,1755931848056,-193.115846,0.00027872,7]
[381001480,1755931848065,-193.115846,0.00027872,7]
[381001482,1755931848075,-193.115846,0.00027872,7]
[381001484,1755931848084,-193.115846,0.00027872,7]
[381001486,1755931848094,-151.0,0.00027872,7]
[381001488,1755931848103,-151.0,0.00027872,7]
[381001490,1755931848113,-151.0,0.00027872,7]
[381001492,1755931848123,-151.0,0.00027872,7]
[381001494,1755931848132,-165.668774,0.00027872,7]
[381001496,1755931848143,-151.0,0.00027872,7]
[381001498,1755931848152,-151.0,0.00027872,7]
[381001500,1755931848162,-151.0,0.00027872,7]
[381001502,1755931848171,-293.69298,0.00027872,7]
[381001504,1755931848180,-151.0,0.00027872,7]
[381001506,1755931848189,-151.0,0.00027872,7]
[381001508,1755931848198,-151.0,0.00027872,7]
[381001510,1755931848207,-164.78490728,0.00027873,5]
[381001512,1755931848217,-500.0,0.00027873,5]
[381001513,1755931848226,-1228.85243332,0.000279,2]
[381001515,1755931848235,-376.14580871,0.00027941,2]
[381001517,1755931848245,-9915.14239301,0.00028007,2]
[381001519,1755931848255,-702.94858007,0.00028007,2]
[381001522,1755931848265,-238.794812,0.00028007,7]
[381001523,1755931848274,-752.270451,0.00028007,7]
[381001525,1755931848283,-752.270451,0.00028007,7]
[381001527,1755931848293,-752.270451,0.00028007,7]
[381001529,1755931848302,-752.270451,0.00028007,7]
[381001531,1755931848311,-151.0,0.00028007,7]
[381001533,1755931848320,-151.0,0.00028007,7]
[381001535,1755931848330,-151.0,0.00028007,7]
[381001537,1755931848340,-193.115846,0.00028007,7]
[381001539,1755931848349,-193.115846,0.00028007,7]
[381001541,1755931848358,-193.115846,0.00028007,7]
[381001543,1755931848368,-193.115846,0.00028007,7]
[381001545,1755931848377,-151.0,0.00028007,7]
[381001547,1755931848386,-151.0,0.00028007,7]
[381001549,1755931848395,-151.0,0.00028007,7]
[381001551,1755931848405,-151.0,0.00028007,7]
[381001553,1755931848415,-151.0,0.00028015,2]
[381001555,1755931848424,-161.0,0.00028017,7]
[381001557,1755931848434,-160.5971256,0.00028017,7]
[381001558,1755931848443,-326.0,0.00028017,7]
[381001560,1755931848452,-326.0,0.00028017,7]
[381001562,1755931848464,-326.0,0.00028017,7]
[381001564,1755931848474,-326.0,0.00028017,7]
[381001566,1755931848483,-326.0,0.00028017,7]
[381001568,1755931848492,-326.0,0.00028017,7]
[381001570,1755931848501,-235.53633783,0.00028017,7]
[381001572,1755931848511,-1763.0,0.00028017,7]
[381001574,1755931848520,-1763.0,0.00028017,7]
[381001576,1755931848530,-1763.0,0.00028017,7]
[381001578,1755931848539,-1763.0,0.00028017,7]
[381001580,1755931848548,-1763.0,0.00028017,7]
[381001581,1755931848557,-1763.0,0.00028017,7]
[381001583,1755931848567,-1763.0,0.00028017,7]
[381001585,1755931848576,-1763.0,0.00028017,7]
[381001587,1755931848585,-151.0,0.00028017,7]
[381001589,1755931848595,-198.99074,0.00028017,7]
[381001591,1755931848604,-221.390734,0.00028017,7]
[381001593,1755931848615,-752.270451,0.00028017,7]
[381001595,1755931848626,-752.270451,0.00028017,7]
[381001597,1755931848635,-752.270451,0.00028017,7]
[381001599,1755931848645,-752.270443,0.00028017,7]
[381001601,1755931848655,-151.0,0.00028017,7]
[381001603,1755931848664,-151.0,0.00028017,7]
[381001605,1755931848674,-151.0,0.00028017,7]
[381001607,1755931848683,-193.115846,0.00028017,7]
[381001609,1755931848694,-193.115846,0.00028017,7]
[381001611,1755931848704,-193.115846,0.00028017,7]
[381001613,1755931848713,-193.115846,0.00028017,7]
[381001615,1755931848722,-417.15472785,0.00028017,7]
[381001617,1755931848733,-222.098498,0.00028017,7]
[381001619,1755931848743,-151.0,0.00028017,7]
[381001621,1755931848752,-151.0,0.00028017,7]
[381001623,1755931848761,-159.816056,0.00028017,7]
[381001625,1755931848770,-1228.85243332,0.00028028,2]
[381001626,1755931848779,-1228.85243332,0.00028155,2]
[381001628,1755931848789,-747.71945941,0.00028184,20]
[381001630,1755931848798,-302.51602579,0.00028184,20]
[381001632,1755931848807,-151.0,0.00028272,7]
[381001634,1755931848817,-151.0,0.00028272,7]
[381001636,1755931848826,-500.0,0.00028273,5]
[381001638,1755931848836,-500.02625902,0.00028273,2]
[381001640,1755931848845,-151.0,0.00028279,7]
[381001642,1755931848854,-151.0,0.00028279,7]
[381001644,1755931848864,-1228.85243332,0.00028283,2]
[381001646,1755931848873,-172.77903988,0.00028283,2]
[381001648,1755931848883,-158.0,0.000283,30]
[381001650,1755931848892,-158.0,0.000283,31]
[381001652,1755931848902,-151.0,0.00028354,7]
[381001654,1755931848911,-2200.0,0.00028354,2]
[381001656,1755931848920,-500.0,0.00028354,2]
[381001658,1755931848930,-9915.14239301,0.00028362,2]
[381001660,1755931848939,-702.94858007,0.00028362,2]
[381001662,1755931848948,-918.6,0.0002837,30]
[381001664,1755931848957,-503.70939151,0.0002837,5]
[381001665,1755931848966,-10000.0,0.00028372,30]
[381001667,1755931848975,-895.0,0.00028372,30]
[381001669,1755931848984,-160.0,0.00028372,30]
[381001671,1755931848993,-232.37252479,0.00028372,30]
[381001673,1755931849003,-844.50316758,0.00028372,30]
[381001675,1755931849012,-217.0334113,0.00028372,30]
[381001677,1755931849021,-417.15472785,0.00028372,30]
[381001679,1755931849031,-152.874619,0.00028372,7]
[381001681,1755931849043,-151.0,0.00028372,7]
[381001683,1755931849053,-151.0,0.00028372,7]
[381001685,1755931849065,-502.75902976,0.00028373,5]
[381001687,1755931849074,-501.39143293,0.00028373,5]
[381001689,1755931849083,-500.0,0.00028373,5]
[381001691,1755931849093,-500.0,0.00028373,5]
[381001693,1755931849102,-500.0,0.00028373,5]
[381001695,1755931849111,-500.0,0.00028373,5]
[381001697,1755931849121,-5000.0,0.00028373,3]
[381001699,1755931849130,-500.0,0.00028376,10]
[381001701,1755931849139,-500.0,0.00028376,10]
[381001703,1755931849148,-160.0,0.00028378,5]
[381001705,1755931849158,-166.41268938,0.00028378,5]
[381001707,1755931849168,-150.0,0.00028378,30]
[381001709,1755931849178,-200.0,0.00028379,10]
[381001711,1755931849187,-1001.1,0.00028379,30]
[381001713,1755931849196,-160.44628917,0.0002838,10]
[381001715,1755931849206,-353536.69859975,0.00028383,20]
[381001717,1755931849215,-150.0,0.00028383,2]
[381001719,1755931849225,-286672.99287968,0.00028383,20]
[381002613,1755931978246,163.447821,0.00013699,2]
[381002631,1755932011092,298.53935287,0.000199,2]
[381002695,1755932176900,288.58804104,0.000199,2]
[381002699,1755932341576,278.96843973,0.000199,2]
[381002702,1755932494276,278.83,0.00028391,120]
[381002703,1755932509127,269.66949171,0.000199,2]
[381002706,1755932675218,260.68050874,0.000199,2]
[381002714,1755932841767,251.99115841,0.000199,2]
[381002720,1755932854455,705.91042628,0.00021,2]
[381002722,1755932958330,163.283813,0.00013699,2]
[381002723,1755933011368,243.59145312,0.000199,2]
[381002785,1755933038473,-5649.20957372,0.00021,2]
[381002786,1755933038483,-243.59145299,0.00021627,2]
[381002787,1755933038492,-210.5088345,0.00022432,2]
[381002788,1755933038501,-2079.7879847,0.00022628,2]
[381002789,1755933038511,-188.0,0.00022846,2]
[381002790,1755933038520,-300.0,0.00022847,2]
[381002791,1755933038529,-206.0,0.00022847,2]
[381002792,1755933038539,-300.0,0.00022847,2]
[381002793,1755933038548,-300.0,0.00022847,2]
[381002794,1755933038557,-300.0,0.00022847,2]
[381002795,1755933038566,-10000.0,0.00022849,2]
[381002796,1755933038575,-1051.2031704,0.00022868,2]
[381002797,1755933038584,-176.7993344,0.00022885,2]
[381002798,1755933038594,-243.59145299,0.00023353,2]
[381002799,1755933038603,-381.94356574,0.000238,2]
[381002800,1755933038613,-6667.53488302,0.000238,2]
[381002801,1755933038622,-164.463041,0.0002383,2]
[381002802,1755933038631,-741.28,0.00023863,3]
[381002803,1755933038641,-160.25323404,0.00023871,5]
[381002804,1755933038651,-500.0,0.00023872,2]
[381002805,1755933038660,-500.0,0.00023872,2]